Cogmind - Beta 13 @@@ ROGUE MODE // 2024.04.22 @ 14:55:11 Player: monkeman Result: Destroyed by G-47 Trooper with Particle Gun Performance ------------- Evolutions (0) 0 Regions Visited (2) 400 Robots Destroyed (25) 125 Value Destroyed (509) 509 Prototype IDs (5) 100 Alien Tech Used (0) 0 Bonus (0) 0 TOTAL SCORE: 1134 Bonus ------- None Cogmind --------- Core Integrity 0/250 Matter 246/300 Energy 90/100 System Corruption 0% Temperature Warning (347) Movement Core (450) Ox8 Location -10/Mines Parts ------- > --- POWER (1) -------- (None) > --- PROPULSION (2) --- Armored Wheel > --- UTILITY (2) ------ Large Storage Unit > --- WEAPON (2) ------- Autogun Autogun > --- INVENTORY (15) --- Light Ion Engine Light Treads Armored Wheel Armored Wheel Improved Heat Sink High-capacity Matter Pod (84) Experimental Sensor Array Signal Interpreter Light Armor Plating Light Armor Plating Tractor Beam Particle Gun Autogun Autogun Peak State ------------ > --- POWER ------------ Light Ion Engine > --- PROPULSION ------- Light Treads Armored Wheel > --- UTILITY ---------- Large Storage Unit Light Armor Plating > --- WEAPON ----------- Particle Gun Autogun > --- INVENTORY -------- Light Ion Engine Light Treads Armored Wheel Armored Wheel Improved Heat Sink High-capacity Matter Pod Experimental Sensor Array Signal Interpreter Light Armor Plating Light Armor Plating Medium Armor Plating Tractor Beam Autogun Autogun Autogun [Rating: 13] Favorites ----------- Power Light Ion Engine Engine Light Ion Engine Propulsion Light Treads Treads Light Treads Wheel Armored Wheel Utility Large Storage Unit Storage Large Storage Unit Protection Light Armor Plating Weapon Autogun Energy Gun Particle Gun Ballistic Gun Autogun Build | -11 -10 -10 ------- Run | Yrd Mat Min Slots Evolved . | . . . Power . | . . . Propulsion . | . . . Utility . | . . . Weapon . | . . . Parts Attached 19 | 6 9 4 Power 2 | 1 1 . Engine 2 | 1 1 . Core . | . . . Reactor . | . . . Propulsion 3 | 2 1 . Treads 1 | 1 . . Leg . | . . . Wheel 2 | 1 1 . Hover . | . . . Flight . | . . . Utility 6 | 1 3 2 Device . | . . . Storage 2 | 1 1 . Processor . | . . . Hackware . | . . . Protection 4 | . 2 2 Artifact . | . . . Weapon 8 | 2 4 2 Energy Gun 4 | 2 1 1 Energy Cannon . | . . . Ballistic Gun 4 | . 3 1 Ballistic Cannon . | . . . Launcher . | . . . Special Weapon . | . . . Impact Weapon . | . . . Slashing Weapon . | . . . Piercing Weapon . | . . . Special Melee Weapon . | . . . Unidentified Prototypes . | . . . Parts Lost 5 | . 1 4 Power 1 | . . 1 Propulsion 1 | . . 1 Utility 2 | . . 2 Weapon 1 | . 1 . Highest Loss Streak 4 | . 1 4 To Critical Strikes . | . . . Average Slot Usage (%) 95 | . 94 98 Engine 13 | . 14 13 Treads 13 | . 14 13 Wheel 14 | . 14 14 Storage 14 | . 14 14 Protection 10 | . 8 13 Energy Gun 5 | . 4 7 Ballistic Gun 22 | . 23 20 Naked Turns . | . . . Heaviest Build 36 | 11 36 32 Greatest Support 12 | 10 12 12 Greatest Overweight (x) 2 | 1 2 2 Average Overweight (x) 1 | . 1 2 Largest Inventory Capacity 15 | 8 15 15 Average Capacity 12 | 6 11 15 Most Carried 15 | 4 15 15 Average Carried 11 | 2 10 14 Final Capacity 15 | 8 15 15 Final Carried 15 | 4 15 14 Class Distribution -------------------- 100% | Mutant Dominant Class ---------------- Mutant | -10/Materials Mutant | -10/Mines Resources | -11 -10 -10 ----------- Run | Yrd Mat Min Matter Collected 673 | 232 347 94 Remotely . | . . . Salvage Created 779 | . 653 126 Parts 53 | . 48 5 Haulers Intercepted 2 | . 2 . Recyclers Shooed . | . . . Parts Field Recycled . | . . . Retrieved Matter . | . . . Parts Self-Destructed . | . . . Prevented . | . . . Kills | -11 -10 -10 ------- Run | Yrd Mat Min Combat Hostiles Destroyed 14 | . 11 3 Guns 13 | . 10 3 AOE 1 | . 1 . Classes Destroyed 9 | . 8 1 Worker 1 | . 1 . Builder 1 | . 1 . Hauler 2 | . 2 . Recycler 3 | . 2 1 Operator 1 | . 1 . Watcher 3 | . 3 . Swarmer 6 | . 6 . Grunt 7 | . 5 2 Demolisher 1 | . . 1 Best Kill Streak 11 | . 11 2 Combat Bots Only 8 | . 8 1 Max Kills in Single Turn 4 | . 4 2 Gunslinging 1 | . 1 . Exploded 1 | . 1 . Melee . | . . . Uniques/NPCs Destroyed . | . . . Combat | -11 -10 -10 -------- Run | Yrd Mat Min Hostile Shots Fired 110 | . 55 55 Missed 31 | . 23 8 Damage Taken 1170 | . 497 673 Core 258 | . 130 128 Absorbed by Shields . | . . . Core Remaining (%) 100 | 100 . . Volleys Fired 53 | . 38 15 Largest 2 | . 2 2 Hottest 88 | . 80 88 Shots Fired 103 | . 76 27 Gun 103 | . 76 27 Cannon . | . . . Launcher . | . . . Special . | . . . Kinetic 76 | . 54 22 Thermal 18 | . 13 5 Explosive . | . . . Electromagnetic 9 | . 9 . Robot Hit Streak 11 | . 11 5 Robot Miss Streak 4 | . 4 2 Penetration Max . | . . . Secondary Targets 2 | . 2 . Max Gunslinging Chain 1 | . 1 . Shots Hit Robots 66 | . 50 16 Core Hits 32 | . 26 6 Critical Kills . | . . . Critical Parts Destroyed . | . . . Critical Strikes . | . . . Melee Attacks . | . . . Impact . | . . . Slashing . | . . . Piercing . | . . . Sneak Attacks . | . . . Combat Hostiles . | . . . Follow-up Attacks . | . . . Damage Inflicted 1403 | . 1120 283 Guns 993 | . 710 283 Cannons . | . . . Explosions 410 | . 410 . Melee . | . . . Ramming . | . . . Kinetic 779 | . 543 236 Thermal 195 | . 148 47 Explosive 330 | . 330 . Electromagnetic 99 | . 99 . Impact . | . . . Slashing . | . . . Piercing . | . . . Highest Corruption . | . . . Average Corruption . | . . . Corruption Purged . | . . . Corruption Blocked . | . . . Overload Shots . | . . . Overflow Damage 72 | . 72 . Projectiles . | . . . Explosions 72 | . 72 . Melee . | . . . Knockbacks . | . . . Impact . | . . . Kinetic . | . . . Secondary . | . . . Self-Inflicted Damage 184 | . 184 . Shots 3 | . 3 . Rammed . | . . . Targets Rammed . | . . . Kicked . | . . . Crushed . | . . . Highest Temperature 335 | . 117 335 Average Temperature 59 | . 28 141 Received Heat Transfer 414 | . 87 327 Effects 2 | . . 2 Energy Bleed 1 | . . 1 Short Circuit 1 | . . 1 Siege Activations . | . . . Robots Corrupted . | . . . Combat Hostiles . | . . . Parts Fried . | . . . Impact Corruptions . | . . . Robots Melted . | . . . Combat Hostiles . | . . . Parts Melted . | . . . Heat Transferred 361 | . 250 111 Parts Sabotaged . | . . . Parts Stolen . | . . . Parts Stripped . | . . . Power Chain Reactions 1 | . 1 . Alert | -11 -10 -10 ------- Run | Yrd Mat Min Peak Influence 351 | . 351 129 Initial 129 | . . 129 Average 207 | . 263 95 Maximum Alert Level 1 | . 1 . Low Security (%) 49 | 100 25 100 Level 1 50 | . 74 . Level 2 . | . . . Level 3 . | . . . Level 4 . | . . . Level 5 . | . . . High Security . | . . . Max Security . | . . . Squads Dispatched 1 | . . 1 Investigation . | . . . Extermination . | . . . Reinforcement . | . . . Assault 1 | . . 1 Garrison . | . . . Intercept . | . . . Searches Triggered . | . . . Construction Impeded . | . . . Haulers Reinforced . | . . . Active Scanning Responses . | . . . Cargo Convoy Interrupts . | . . . Stealth | -11 -10 -10 --------- Run | Yrd Mat Min Distress Signals 2 | . 2 . Communications Jammed . | . . . Distress Signals . | . . . Times Spotted 25 | . 16 9 Peak Tracking Total 6 | . 5 6 Tactical Retreats . | . . . Traps | -11 -10 -10 ------- Run | Yrd Mat Min Traps Triggered . | . . . Indirectly . | . . . Trap Hack Attempts . | . . . Triggered . | . . . Disarmed . | . . . Reprogrammed . | . . . Reused . | . . . Traps Extracted . | . . . Installed . | . . . Triggered . | . . . Machines | -11 -10 -10 ---------- Run | Yrd Mat Min Machines Disabled 4 | . 4 . Max in Single Turn 1 | . 1 . Machines Repaired . | . . . Machines Dismantled . | . . . Machines Sabotaged . | . . . Overloaded Fab Kills . | . . . Hacking | -11 -10 -10 --------- Run | Yrd Mat Min Machines Accessed 8 | . 8 . Terminals 6 | . 6 . Fabricators . | . . . Repair Stations . | . . . Recycling Units 2 | . 2 . Scanalyzers . | . . . Garrison Access . | . . . Total Hacks 21 | . 21 . Successful 10 | . 10 . Failed 11 | . 11 . Catastrophic 1 | . 1 . Database Lockouts . | . . . Manual 5 | . 5 . Terminals 17 | . 17 . Fabricators . | . . . Repair Stations . | . . . Recycling Units 4 | . 4 . Scanalyzers . | . . . Garrison Access . | . . . Terminal Hacks 7 | . 7 . Part Schematic 1 | . 1 . Robot Analysis 1 | . 1 . Prototype ID Bank 3 | . 3 . Branch Access Points 1 | . 1 . Locate Traps 1 | . 1 . Fabricator Hacks . | . . . Repair Station Hacks . | . . . Recycling Unit Hacks 3 | . 3 . Report Inventory 2 | . 2 . Retrieve Components 1 | . 1 . Scanalyzer . | . . . Garrison Access Hacks . | . . . Unauthorized Hacks . | . . . Terminals . | . . . Fabricators . | . . . Repair Stations . | . . . Recycling Units . | . . . Scanalyzers . | . . . Garrison Access . | . . . Data Cores Recovered . | . . . Used . | . . . Hacking Detections 6 | . 6 . Full Trace Events . | . . . Feedback Events . | . . . Feedback Blocked . | . . . Robot Schematics Acquired . | . . . Robots Built . | . . . Authchips . | . . . Time . | . . . Total Robot Build Rating . | . . . Part Schematics Acquired 1 | . 1 . Parts Built . | . . . Authchips . | . . . Time . | . . . Total Part Build Rating . | . . . Parts Repaired . | . . . Time . | . . . Parts Recycled . | . . . Recycled Matter . | . . . Retrieved Matter . | . . . Retrieved Components 5 | . 5 . Parts Scanalyzed . | . . . Part Schematics Acquired . | . . . Parts Damaged . | . . . Bothacking | -11 -10 -10 ------------ Run | Yrd Mat Min Used RIF Installer . | . . . Robots Hacked . | . . . Non-combat . | . . . Combat . | . . . Robot Hacks Applied . | . . . Relay Couplers Released . | . . . Fabnet Peak Effective % . | . . . Robots Rewired . | . . . Allies Hacked . | . . . Hacks Repelled . | . . . Allies | -11 -10 -10 -------- Run | Yrd Mat Min Total Allies 6 | . . 6 Largest Group 5 | . . 5 Highest-Rated Group 85 | . . 85 Highest-Rated Ally 31 | . . 31 Total Orders . | . . . Ally Attacks 4 | . . 4 Total Damage 83 | . . 83 Kills . | . . . Allies Corrupted . | . . . Allies Melted . | . . . Intel | -11 -10 -10 ------- Run | Yrd Mat Min Robot Analysis Total 1 | . 1 . Derelict Logs Recovered . | . . . Drone Launches . | . . . Drone Recoveries . | . . . Exploration | -11 -10 -10 ------------- Run | Yrd Mat Min Turns Passed 1143 | 37 782 324 Spaces Moved 831 | 29 576 226 Core 6 | 6 . . Treads . | . . . Legs . | . . . Wheels 825 | 23 576 226 Hover . | . . . Flight . | . . . Fastest Speed 50 | 50 80 120 Average Speed 111 | 83 109 120 Slowest Speed 120 | 95 120 120 Overloaded Moves . | . . . Propulsion Burnouts . | . . . Robots Hopped . | . . . Cave-ins Triggered . | . . . Exploration Rate (%) 50 | 4 87 59 Regions Visited 2 Branch Regions 1 Pre-discovered Areas . | . . . Known Exits Taken 1 | . 1 . Unknown Exits Taken 1 | 1 . . Scrap Searched 1 | . . 1 Spaces Dug . | . . . Terrain Destroyed 59 | . 59 . Melee . | . . . Projectile . | . . . AOE 59 | . 59 . Terrain Rammed . | . . . Walls Destroyed . | . . . Machines Disabled . | . . . Actions | -11 -10 -10 --------- Run | Yrd Mat Min Total 962 | 38 667 257 Wait 18 | . 14 4 Move 829 | 28 575 226 Hop . | . . . Pick Up 27 | 4 19 4 Fast Attach 7 | 6 1 . Attach 2 | . 1 1 Detach . | . . . Swap 10 | . 7 3 Drop 14 | . 10 4 Fire 53 | . 38 15 Melee . | . . . Ram . | . . . Kick . | . . . Crush . | . . . Escape Stasis . | . . . Rewire 2 | . 2 . Trap . | . . . Miscellaneous . | . . . Route ------- -11/Scrapyard -10/Materials (discovered 4 exits: [*Mat x3] / *Min) -10/Mines History --------- Turn | Location | Event 22 | -11/Scrapyard | Discovered new exit (range 15) 38 | -11/Scrapyard | Entered Materials 135 | -10/Materials | Discovered new exit (range 14) 148 | -10/Materials | Core integrity fell below 50% 173 | -10/Materials | Identified exit to Mines 183 | -10/Materials | Destroyed 8 combat bots 318 | -10/Materials | Build established: Mutant 540 | -10/Materials | Discovered new exit (range 4) 766 | -10/Materials | Discovered new exit (range 8) 820 | -10/Materials | Entered Mines 849 | -10/Mines | Assisted by bots powering up and referring to "LRC-V3" 883 | -10/Mines | Assembled infested the area 959 | -10/Mines | Lost 5 allies 967 | -10/Mines | Found a damaged Exp. Sensor Array with a note attached 970 | -10/Mines | Found Prototype Device 1048 | -10/Mines | Met a Derelict testing a Signal Generator 1125 | -10/Mines | Core integrity fell below 20% 1144 | -10/Mines | Destroyed by G-47 Trooper with Particle Gun Last Messages --------------- 01060_ ALERT: Intercepting significant anomalous signal. Redirecting assault force. 01068_ T-07 Excavator is excavating. 01070_ ALERT: Intercepting significant anomalous signal. Redirecting assault force. 01104_ T-07 Excavator is excavating. 01110_ G-47 Trooper unfolds itself. 01110_ G-34 Mercenary unfolds itself. 01110_ G-47 Trooper: "LOCATED POTENTIAL SOURCE OF ANOMALOUS SIGNAL. NEUTRALIZING." 01119_ V2-TYK(g) destroyed. 01126_ G-47 Trooper destroyed. 01128_ G-34 Mercenary destroyed. 01129_ Lgt. Armor Plating destroyed. 01133_ Lgt. Treads destroyed. 01137_ Lgt. Ion Engine destroyed. 01138_ Autogun broken. 01138_ Overheating: Short circuit. 01141_ Overheating: Energy bleed (-23). 01142_ Med. Armor Plating destroyed. Map ----- +----------------------------------------------------+ | ?????????????# #???????????????????? | | ?????????????# #????????????????????? | | ?????????????## ##????????########## | | ??????????????# ###?????????# | | ??????????????# ############# # | | ??????????????# ########## | | ??????????????############### #????????? | | ???????????????#####????????# #????????? | | ??????????????## ##???????# ##???????? | | ?????????????## #???????# ##??????? | | ????????????## #???##### #??????? | | ???????????## ##?## #??????? | | ???????????# ### ##??????? | | ???????????# ##???????? | | ???????????# ## ##????????? | | ???????????## #### ##?????????? | | ????????????## #??## ##??????????? | | ?????????????# #???## ####???????????? | | ?????????????# #????### #??????????????? | | ?????????????# #??????# #????#######???? | | ?????????????# ######## #???## ##??? | | ????????????## =** " #??## #### | | ???????????## =%[ #?## | | ???????????# g%!#### ###?# #?# | | ???????????# gg##??# #???# #?# | | ?????????### @#???# ##### ### | | ?????????# %#???# | | ?????????##t * #??######## | | ??????????## g #????????## ! # | | ???????????#### #????????#### # | | ??????????????## #??????????# # # | | ???????????????# #?????????# ### | | ??????????????? """ #?????????# #?## # | | ??????????????? """ #???????? #??### | | ??????????????? """ ?????? ????? | | ??????????????? ? ???? ????? | | ??????????????? ??? #?? ????? | | ??????????????? #???? ###?# ???? | | ??????????????? ??????#???# ? | | ??????????????? ??????????## ??## | | ??????????????? ???????????## #???? | | ?????????????????#?????????????# #????? | | ????????????????????????????????????????? | | ????????????????????????????????????????? | | ????????????????????????????????????????? | | ????????????????????????????????????????? | | ????????????????????????????????????????? | | ????????????????????????????????????????? | | ????????????????????????????????????????? | | ????????????????????????????????????????? | +----------------------------------------------------+ Best States ------------- Heat Dissipation 25 Energy Generation 10 Energy Capacity 125 Matter Stores 300 Matter Capacity 300 Sight Range 16 Terrain Scan Density 10 Armor Coverage 225 Evasion (%) 50 Recoil Reduction 1 Item Schematics ----------------- Huge Storage Unit | -10/Materials | Hacked Robot Schematics ------------------ None Fabricated ------------ Nothing Alien Tech Used ----------------- None Achievements -------------- None Challenges ------------ None Game ------ Seed GuidancePlasmaGravjet Manual? 0 Play Time 00:11:58 Cumulative 41.9 hours Start 2024.04.22 @ 14:45:36 End 2024.04.22 @ 14:55:11 Sessions 1 Manual Loads 0 Difficulty Rogue Special Mode None Game No. 53 Rogue 53 Adventurer 0 Explorer 0 Win Type - Total 1 Types 1/0/0/0/0/0/0/0/0 Lore% 27 Gallery% 41 Achievement% 31 Wizard Run 0 Options --------- Layout 1 ASCII 0 Keyboard 0 Movement Mouse Keybinds 0 Fullscreen 1 Font 24/Smallcaps Map View 50x35 Zoom Use 0% Tactical HUD 1 Map Filters NONE Filters NONE Steam 1 RUN: 25639d18-a2e8-4b10-a509-61e9a592f290